[Event "*** Titled Tuesday Blitz"]
[Site "Chess.com"]
[Date "2020.12.01"]
[Round "6"]
[White "orestn"]
[Black "Khnykin_Nikolay"]
[Result "1-0"]
[WhiteElo "2303"]
[BlackElo "2025"]
[TimeControl "180+1"]
[EndTime "11:01:03 PST"]
[Termination "orestn won by checkmate"]

1. e4 {[%clk 0:03:00.9]} 1... e6 {[%clk 0:02:58.7]} 2. d4 {[%clk 0:02:58.6]}
2... d5 {[%clk 0:02:58.7]} 3. Nc3 {[%clk 0:02:59.5]} 3... Bb4 {[%clk 0:02:57.4]}
4. e5 {[%clk 0:02:59.3]} 4... c5 {[%clk 0:02:56.5]} 5. a3 {[%clk 0:02:59.8]}
5... Bxc3+ {[%clk 0:02:55.7]} 6. bxc3 {[%clk 0:03:00.7]} 6... cxd4 {[%clk
0:02:56.1]} 7. cxd4 {[%clk 0:03:00.2]} 7... Nc6 {[%clk 0:02:54.3]} 8. Nf3 {[%clk
0:02:59.7]} 8... Nge7 {[%clk 0:02:53.7]} 9. Bd3 {[%clk 0:02:59.1]} 9... O-O
{[%clk 0:02:51.7]} 10. Bxh7+ {[%clk 0:02:52.8]} 10... Kh8 {[%clk 0:02:47]} 11.
Bd3 {[%clk 0:02:50.2]} 11... g6 {[%clk 0:02:44.2]} 12. Bg5 {[%clk 0:02:42.3]}
12... Qa5+ {[%clk 0:02:37.9]} 13. Kf1 {[%clk 0:02:40.1]} 13... Nf5 {[%clk
0:02:31.1]} 14. Bf6+ {[%clk 0:02:38.7]} 14... Kg8 {[%clk 0:02:29.5]} 15. Bxf5
{[%clk 0:02:34.6]} 15... exf5 {[%clk 0:02:27.9]} 16. Qc1 {[%clk 0:02:28.5]}
16... Nxd4 {[%clk 0:01:52.4]} 17. Nxd4 {[%clk 0:02:24.3]} 17... Qc3 {[%clk
0:01:46.6]} 18. Ne2 {[%clk 0:02:22.7]} 18... Qc4 {[%clk 0:01:35.7]} 19. Qh6
{[%clk 0:02:20.7]} 19... Rd8 {[%clk 0:01:21.2]} 20. Qh8# {[%clk 0:02:16.5]} 1-0

[Event "*** Titled Tuesday Blitz"]
[Site "Chess.com"]
[Date "2020.12.01"]
[Round "6"]
[White "BogdanDeac"]
[Black "j_coca"]
[Result "1-0"]
[WhiteElo "2955"]
[BlackElo "2383"]
[TimeControl "180+1"]
[EndTime "11:01:08 PST"]
[Termination "BogdanDeac won by resignation"]

1. Nf3 {[%clk 0:03:00.9]} 1... g6 {[%clk 0:02:52.2]} 2. e4 {[%clk 0:03:00.6]}
2... Bg7 {[%clk 0:02:22.1]} 3. d4 {[%clk 0:03:00]} 3... d6 {[%clk 0:02:22.1]} 4.
c3 {[%clk 0:02:58.6]} 4... Nc6 {[%clk 0:02:21.5]} 5. d5 {[%clk 0:02:57.5]} 5...
Ne5 {[%clk 0:02:11.7]} 6. Nxe5 {[%clk 0:02:56.5]} 6... Bxe5 {[%clk 0:02:00.3]}
7. Bd3 {[%clk 0:02:55.3]} 7... e6 {[%clk 0:01:57.3]} 8. O-O {[%clk 0:02:52]}
8... Bg7 {[%clk 0:01:55.2]} 9. c4 {[%clk 0:02:50.6]} 9... e5 {[%clk 0:01:51.7]}
10. Nc3 {[%clk 0:02:47.7]} 10... Ne7 {[%clk 0:01:49.8]} 11. Rb1 {[%clk 0:02:45]}
11... O-O {[%clk 0:01:47.8]} 12. f4 {[%clk 0:02:43.4]} 12... exf4 {[%clk
0:01:45.9]} 13. Bxf4 {[%clk 0:02:43]} 13... f5 {[%clk 0:01:46.2]} 14. Qd2 {[%clk
0:02:38.7]} 14... fxe4 {[%clk 0:01:43.9]} 15. Nxe4 {[%clk 0:02:38.4]} 15... Nf5
{[%clk 0:01:43.5]} 16. Bg5 {[%clk 0:02:34.4]} 16... Qe8 {[%clk 0:01:43]} 17.
Rbe1 {[%clk 0:02:32.6]} 17... Kh8 {[%clk 0:01:33.4]} 18. Nxd6 {[%clk 0:02:26.3]}
18... Bd4+ {[%clk 0:01:27.9]} 19. Kh1 {[%clk 0:02:25.6]} 19... Ng3+ {[%clk
0:01:27.9]} 20. hxg3 {[%clk 0:02:23.3]} 20... Rxf1+ {[%clk 0:01:27.9]} 21. Bxf1
{[%clk 0:02:22.7]} 21... Qf8 {[%clk 0:01:19.8]} 22. Qxd4+ {[%clk 0:02:21.7]} 1-0

[Event "*** Titled Tuesday Blitz"]
[Site "Chess.com"]
[Date "2020.12.01"]
[Round "6"]
[White "gagtemp"]
[Black "beto-betun"]
[Result "0-1"]
[WhiteElo "1946"]
[BlackElo "2206"]
[TimeControl "180+1"]
[EndTime "11:01:28 PST"]
[Termination "beto-betun won by resignation"]

1. e4 {[%clk 0:03:00.9]} 1... c5 {[%clk 0:02:59.6]} 2. Nf3 {[%clk 0:03:00.1]}
2... d6 {[%clk 0:02:59.2]} 3. d4 {[%clk 0:02:56.5]} 3... cxd4 {[%clk 0:02:59.8]}
4. Nxd4 {[%clk 0:02:57.3]} 4... Nf6 {[%clk 0:02:59]} 5. Nc3 {[%clk 0:02:55.8]}
5... a6 {[%clk 0:02:59]} 6. Be3 {[%clk 0:02:53.5]} 6... e5 {[%clk 0:02:58.5]} 7.
Nb3 {[%clk 0:02:52.3]} 7... Be7 {[%clk 0:02:57]} 8. f3 {[%clk 0:02:52]} 8... Be6
{[%clk 0:02:48.1]} 9. Qd2 {[%clk 0:02:51.1]} 9... O-O {[%clk 0:02:46.9]} 10. Nd5
{[%clk 0:02:46.6]} 10... Nxd5 {[%clk 0:02:44]} 11. exd5 {[%clk 0:02:43.9]} 11...
Bf5 {[%clk 0:02:44.5]} 12. Na5 {[%clk 0:02:40.4]} 12... b6 {[%clk 0:02:40.9]}
13. Nc6 {[%clk 0:02:37.5]} 13... Nxc6 {[%clk 0:02:39.4]} 14. dxc6 {[%clk
0:02:37.6]} 14... Qc7 {[%clk 0:02:31.2]} 15. Bc4 {[%clk 0:02:20]} 15... Be6
{[%clk 0:02:26.3]} 16. Qd3 {[%clk 0:02:08.3]} 16... Qxc6 {[%clk 0:02:19.8]} 17.
Bxa6 {[%clk 0:02:04.4]} 17... Bh4+ {[%clk 0:02:02.3]} 18. g3 {[%clk 0:02:01.1]}
18... Qxf3 {[%clk 0:01:47.6]} 19. gxh4 {[%clk 0:01:58.9]} 19... Qxh1+ {[%clk
0:01:46]} 20. Qf1 {[%clk 0:01:51.2]} 20... Qe4 {[%clk 0:01:32.6]} 21. Bd3 {[%clk
0:01:49.3]} 21... Qxe3+ {[%clk 0:01:31.2]} 0-1

[Event "*** Titled Tuesday Blitz"]
[Site "Chess.com"]
[Date "2020.12.01"]
[Round "6"]
[White "GM_dmitrij"]
[Black "StephenDedalus83"]
[Result "1-0"]
[WhiteElo "2953"]
[BlackElo "2702"]
[TimeControl "180+1"]
[EndTime "11:01:32 PST"]
[Termination "GM_dmitrij won by resignation"]

1. c4 {[%clk 0:03:00.9]} 1... g6 {[%clk 0:02:58.6]} 2. Nc3 {[%clk 0:03:00.4]}
2... Bg7 {[%clk 0:02:58.7]} 3. d4 {[%clk 0:02:59.9]} 3... d6 {[%clk 0:02:57.3]}
4. e4 {[%clk 0:02:59]} 4... Nf6 {[%clk 0:02:57.2]} 5. Be2 {[%clk 0:02:59.3]}
5... O-O {[%clk 0:02:57.2]} 6. Be3 {[%clk 0:02:59.4]} 6... Nbd7 {[%clk
0:02:53.7]} 7. Nf3 {[%clk 0:02:55]} 7... c6 {[%clk 0:02:49.2]} 8. h3 {[%clk
0:02:52.1]} 8... a6 {[%clk 0:02:48.1]} 9. e5 {[%clk 0:02:50]} 9... Ne8 {[%clk
0:02:46.7]} 10. exd6 {[%clk 0:02:46.6]} 10... Nxd6 {[%clk 0:02:42.2]} 11. Qd2
{[%clk 0:02:38.1]} 11... Nf5 {[%clk 0:02:41.5]} 12. Bf4 {[%clk 0:02:37.8]} 12...
Re8 {[%clk 0:02:39.1]} 13. Rd1 {[%clk 0:02:33.2]} 13... Qa5 {[%clk 0:02:35.1]}
14. O-O {[%clk 0:02:29.4]} 14... Nf8 {[%clk 0:02:28]} 15. Be5 {[%clk 0:02:07.8]}
15... Bh6 {[%clk 0:02:11.9]} 16. Qc2 {[%clk 0:02:01.2]} 16... Ne6 {[%clk
0:02:10.7]} 17. Rfe1 {[%clk 0:01:59]} 17... Bd7 {[%clk 0:02:01.4]} 18. d5 {[%clk
0:01:51.5]} 18... Nf4 {[%clk 0:01:57.3]} 19. Bf1 {[%clk 0:01:48.5]} 19... Rad8
{[%clk 0:01:55.6]} 20. g3 {[%clk 0:01:40.6]} 20... Nxg3 {[%clk 0:01:50.5]} 21.
fxg3 {[%clk 0:01:41.5]} 21... Nxh3+ {[%clk 0:01:50.5]} 22. Bxh3 {[%clk
0:01:40.9]} 22... Bxh3 {[%clk 0:01:50.4]} 23. Qh2 {[%clk 0:01:40.7]} 1-0

[Event "*** Titled Tuesday Blitz"]
[Site "Chess.com"]
[Date "2020.12.01"]
[Round "6"]
[White "ViktoriyaTarasova"]
[Black "RaneshRatnesan"]
[Result "1-0"]
[WhiteElo "2284"]
[BlackElo "2139"]
[TimeControl "180+1"]
[EndTime "11:01:39 PST"]
[Termination "ViktoriyaTarasova won by resignation"]

1. d4 {[%clk 0:03:00.9]} 1... d5 {[%clk 0:02:55.3]} 2. c4 {[%clk 0:03:01.4]}
2... c6 {[%clk 0:02:52.3]} 3. Nf3 {[%clk 0:03:01.6]} 3... Nf6 {[%clk 0:02:51.8]}
4. Nc3 {[%clk 0:03:01.6]} 4... e6 {[%clk 0:02:51.8]} 5. Bg5 {[%clk 0:03:00.8]}
5... Be7 {[%clk 0:02:51.7]} 6. e3 {[%clk 0:03:00.5]} 6... Nbd7 {[%clk
0:02:50.7]} 7. Bd3 {[%clk 0:03:00.6]} 7... h6 {[%clk 0:02:49.3]} 8. Bh4 {[%clk
0:02:59.7]} 8... O-O {[%clk 0:02:48.3]} 9. O-O {[%clk 0:02:59.7]} 9... a6 {[%clk
0:02:48]} 10. a4 {[%clk 0:02:59.2]} 10... Re8 {[%clk 0:02:34.8]} 11. Qc2 {[%clk
0:02:58.6]} 11... dxc4 {[%clk 0:02:33.6]} 12. Bxc4 {[%clk 0:02:58]} 12... c5
{[%clk 0:02:33.4]} 13. Rfd1 {[%clk 0:02:56.2]} 13... Qa5 {[%clk 0:02:31.7]} 14.
Rac1 {[%clk 0:02:52.6]} 14... Rb8 {[%clk 0:02:27.2]} 15. Bg3 {[%clk 0:02:51.2]}
15... Ra8 {[%clk 0:02:27.5]} 16. e4 {[%clk 0:02:50.3]} 16... Nh5 {[%clk
0:02:26.2]} 17. d5 {[%clk 0:02:47.5]} 17... Nxg3 {[%clk 0:02:25.6]} 18. hxg3
{[%clk 0:02:47.5]} 18... e5 {[%clk 0:02:23]} 19. d6 {[%clk 0:02:42]} 19... Bg5
{[%clk 0:02:18.2]} 20. Nxg5 {[%clk 0:02:40.6]} 20... hxg5 {[%clk 0:02:19.1]} 21.
Qb3 {[%clk 0:02:39.9]} 21... Rf8 {[%clk 0:02:17.5]} 22. Nd5 {[%clk 0:02:39.6]}
22... Rb8 {[%clk 0:02:15]} 23. Ne7+ {[%clk 0:02:38.4]} 23... Kh8 {[%clk
0:02:14.9]} 24. Bxf7 {[%clk 0:02:38.5]} 24... b5 {[%clk 0:02:13.2]} 25. Ng6+
{[%clk 0:02:36.6]} 25... Kh7 {[%clk 0:02:13.8]} 26. Nxf8+ {[%clk 0:02:36.5]}
26... Nxf8 {[%clk 0:02:14.7]} 27. Qf3 {[%clk 0:02:35.5]} 27... g4 {[%clk
0:02:12.9]} 28. Qe3 {[%clk 0:02:27.9]} 28... Qd8 {[%clk 0:02:11.9]} 29. axb5
{[%clk 0:02:26.3]} 29... axb5 {[%clk 0:02:11.7]} 30. Rxc5 {[%clk 0:02:24.2]}
30... Qf6 {[%clk 0:02:10]} 31. Bb3 {[%clk 0:02:20.1]} 31... Ne6 {[%clk
0:02:09.9]} 32. Rcc1 {[%clk 0:02:17.8]} 32... Bd7 {[%clk 0:02:09.1]} 33. Bxe6
{[%clk 0:02:15.4]} 33... Qxe6 {[%clk 0:02:07.8]} 34. Rc7 {[%clk 0:02:14.5]}
34... Rc8 {[%clk 0:02:06.7]} 35. Qc5 {[%clk 0:02:13.2]} 35... Rf8 {[%clk
0:02:06.2]} 36. Qd5 {[%clk 0:01:59.3]} 36... Qe8 {[%clk 0:02:05.2]} 37. Rc5
{[%clk 0:01:55.8]} 37... Be6 {[%clk 0:02:05.2]} 38. Qxe5 {[%clk 0:01:55.5]}
38... Qf7 {[%clk 0:02:04.3]} 39. Qh5+ {[%clk 0:01:54.4]} 39... Qxh5 {[%clk
0:02:03.6]} 40. Rxh5+ {[%clk 0:01:54.9]} 40... Kg6 {[%clk 0:02:03.2]} 41. Rxb5
{[%clk 0:01:53.4]} 1-0

[Event "*** Titled Tuesday Blitz"]
[Site "Chess.com"]
[Date "2020.12.01"]
[Round "6"]
[White "Quiet_Desperation"]
[Black "Nemsko"]
[Result "0-1"]
[WhiteElo "1675"]
[BlackElo "2380"]
[TimeControl "180+1"]
[EndTime "11:01:49 PST"]
[Termination "Nemsko won by resignation"]

1. e4 {[%clk 0:03:00.9]} 1... e5 {[%clk 0:02:56.5]} 2. Nf3 {[%clk 0:03:00.9]}
2... Nc6 {[%clk 0:02:55.8]} 3. Bc4 {[%clk 0:03:00.9]} 3... Bc5 {[%clk
0:02:54.4]} 4. b4 {[%clk 0:03:01]} 4... Bxb4 {[%clk 0:02:53.3]} 5. c3 {[%clk
0:03:01.6]} 5... Bd6 {[%clk 0:02:52.8]} 6. d4 {[%clk 0:03:00.3]} 6... Qe7 {[%clk
0:02:49.8]} 7. O-O {[%clk 0:02:59.7]} 7... Nf6 {[%clk 0:02:45]} 8. Bg5 {[%clk
0:02:49.6]} 8... h6 {[%clk 0:02:41.6]} 9. Bh4 {[%clk 0:02:49.5]} 9... O-O {[%clk
0:02:37]} 10. Nbd2 {[%clk 0:02:48.5]} 10... b6 {[%clk 0:02:26.4]} 11. Kh1 {[%clk
0:02:44.9]} 11... Bb7 {[%clk 0:02:25.6]} 12. dxe5 {[%clk 0:02:42.3]} 12... Nxe5
{[%clk 0:02:24.6]} 13. Nxe5 {[%clk 0:02:42.7]} 13... Bxe5 {[%clk 0:02:25.5]} 14.
f4 {[%clk 0:02:42.7]} 14... Bxc3 {[%clk 0:02:23.3]} 15. e5 {[%clk 0:02:42]}
15... Bxa1 {[%clk 0:02:22.3]} 16. Qxa1 {[%clk 0:02:35.2]} 16... Qb4 {[%clk
0:02:17.5]} 17. exf6 {[%clk 0:02:10.1]} 17... Qxd2 {[%clk 0:02:10.9]} 18. Rf2
{[%clk 0:02:10]} 18... Qe3 {[%clk 0:01:52.3]} 19. Qd1 {[%clk 0:01:50]} 19... g6
{[%clk 0:01:26.1]} 20. Qg4 {[%clk 0:01:44.6]} 20... Qc1+ {[%clk 0:01:17.2]} 21.
Rf1 {[%clk 0:01:43]} 21... Qxc4 {[%clk 0:01:16.5]} 0-1

[Event "*** Titled Tuesday Blitz"]
[Site "Chess.com"]
[Date "2020.12.01"]
[Round "6"]
[White "dosto07"]
[Black "ambaixador"]
[Result "0-1"]
[WhiteElo "2311"]
[BlackElo "2440"]
[TimeControl "180+1"]
[EndTime "11:01:53 PST"]
[Termination "ambaixador won by resignation"]

1. d4 {[%clk 0:03:00.9]} 1... d5 {[%clk 0:02:59]} 2. Nf3 {[%clk 0:02:59.1]} 2...
e6 {[%clk 0:02:58.7]} 3. Bf4 {[%clk 0:02:58.2]} 3... Bd6 {[%clk 0:02:58.6]} 4.
e3 {[%clk 0:02:56.1]} 4... Ne7 {[%clk 0:02:58.4]} 5. c4 {[%clk 0:02:50.3]} 5...
Bxf4 {[%clk 0:02:54.4]} 6. exf4 {[%clk 0:02:49.2]} 6... O-O {[%clk 0:02:50.9]}
7. Nc3 {[%clk 0:02:48.9]} 7... c5 {[%clk 0:02:44.6]} 8. dxc5 {[%clk 0:02:44.5]}
8... Na6 {[%clk 0:02:44]} 9. cxd5 {[%clk 0:02:40.8]} 9... Nxd5 {[%clk
0:02:39.1]} 10. Nxd5 {[%clk 0:02:38.2]} 10... exd5 {[%clk 0:02:40]} 11. Bxa6
{[%clk 0:02:36.5]} 11... Qa5+ {[%clk 0:02:37.6]} 12. Qd2 {[%clk 0:02:22.3]}
12... Qxa6 {[%clk 0:02:38.5]} 13. Qe2 {[%clk 0:02:16.4]} 13... Qa5+ {[%clk
0:02:28.7]} 14. Nd2 {[%clk 0:02:09.6]} 14... Bd7 {[%clk 0:02:20.5]} 15. O-O
{[%clk 0:02:01.5]} 15... Bb5 {[%clk 0:02:20.1]} 16. Qe3 {[%clk 0:01:59.4]} 16...
Bxf1 {[%clk 0:02:19.7]} 17. Nxf1 {[%clk 0:01:59.9]} 17... Qb4 {[%clk 0:02:04.1]}
18. b3 {[%clk 0:01:54.9]} 18... Rfe8 {[%clk 0:02:01.4]} 19. Qc1 {[%clk
0:01:41.2]} 19... d4 {[%clk 0:01:52.7]} 20. Nd2 {[%clk 0:01:38.9]} 20... Re2
{[%clk 0:01:47.8]} 21. Nf3 {[%clk 0:01:38.6]} 21... Rae8 {[%clk 0:01:46.3]} 22.
f5 {[%clk 0:01:29.8]} 22... d3 {[%clk 0:01:43.5]} 23. Qg5 {[%clk 0:01:22.9]}
23... Re1+ {[%clk 0:01:41.8]} 24. Nxe1 {[%clk 0:01:21.8]} 24... Rxe1+ {[%clk
0:01:42.7]} 0-1

[Event "*** Titled Tuesday Blitz"]
[Site "Chess.com"]
[Date "2020.12.01"]
[Round "6"]
[White "chessdjw"]
[Black "SergeiAza"]
[Result "0-1"]
[WhiteElo "2647"]
[BlackElo "2837"]
[TimeControl "180+1"]
[EndTime "11:02:02 PST"]
[Termination "SergeiAza won by resignation"]

1. d4 {[%clk 0:03:00.9]} 1... f5 {[%clk 0:02:57.7]} 2. g3 {[%clk 0:02:57.1]}
2... Nf6 {[%clk 0:02:57.7]} 3. Bg2 {[%clk 0:02:57.6]} 3... e6 {[%clk 0:02:58.3]}
4. c4 {[%clk 0:02:57.9]} 4... Be7 {[%clk 0:02:58.8]} 5. Nc3 {[%clk 0:02:57.7]}
5... O-O {[%clk 0:02:59.4]} 6. Nf3 {[%clk 0:02:58]} 6... d6 {[%clk 0:02:59.8]}
7. O-O {[%clk 0:02:58.2]} 7... Ne4 {[%clk 0:03:00.1]} 8. Qc2 {[%clk 0:02:57.5]}
8... Nxc3 {[%clk 0:02:59.7]} 9. Qxc3 {[%clk 0:02:58.4]} 9... a5 {[%clk
0:02:59.8]} 10. b3 {[%clk 0:02:58.6]} 10... Bf6 {[%clk 0:02:59.6]} 11. Bb2
{[%clk 0:02:58.2]} 11... Nc6 {[%clk 0:02:59.7]} 12. Rad1 {[%clk 0:02:57.1]}
12... Qe7 {[%clk 0:02:57.8]} 13. Rfe1 {[%clk 0:02:54]} 13... e5 {[%clk
0:02:53.6]} 14. dxe5 {[%clk 0:02:52.5]} 14... dxe5 {[%clk 0:02:53.2]} 15. e4
{[%clk 0:02:50.2]} 15... fxe4 {[%clk 0:02:48.9]} 16. Rxe4 {[%clk 0:02:49.8]}
16... Bf5 {[%clk 0:02:47.9]} 17. Re3 {[%clk 0:02:48.2]} 17... e4 {[%clk
0:02:45.6]} 18. Qc1 {[%clk 0:02:44.4]} 18... Bg4 {[%clk 0:02:10.7]} 19. Rde1
{[%clk 0:02:28.8]} 19... Qf7 {[%clk 0:01:42.9]} 20. Nd2 {[%clk 0:01:54.5]} 20...
Bxb2 {[%clk 0:01:40]} 21. Qxb2 {[%clk 0:01:54.3]} 21... Qxf2+ {[%clk 0:01:39.8]}
22. Kh1 {[%clk 0:01:54.5]} 22... Bf3 {[%clk 0:01:34.6]} 23. Nxf3 {[%clk
0:01:20.6]} 23... Qxb2 {[%clk 0:01:32.6]} 0-1

[Event "*** Titled Tuesday Blitz"]
[Site "Chess.com"]
[Date "2020.12.01"]
[Round "6"]
[White "MFBerna"]
[Black "ChessQueen"]
[Result "0-1"]
[WhiteElo "2422"]
[BlackElo "2711"]
[TimeControl "180+1"]
[EndTime "11:02:02 PST"]
[Termination "ChessQueen won by resignation"]

1. d4 {[%clk 0:03:00.9]} 1... Nf6 {[%clk 0:02:57.8]} 2. c4 {[%clk 0:03:01.8]}
2... e6 {[%clk 0:02:58.1]} 3. Nc3 {[%clk 0:02:56.1]} 3... Bb4 {[%clk 0:02:56.8]}
4. Qc2 {[%clk 0:02:55.8]} 4... d6 {[%clk 0:02:55.4]} 5. a3 {[%clk 0:02:54.9]}
5... Bxc3+ {[%clk 0:02:54.8]} 6. Qxc3 {[%clk 0:02:55.8]} 6... O-O {[%clk
0:02:55.1]} 7. Nf3 {[%clk 0:02:55.7]} 7... Nbd7 {[%clk 0:02:54.9]} 8. Bg5 {[%clk
0:02:55.9]} 8... h6 {[%clk 0:02:49.8]} 9. Bxf6 {[%clk 0:02:54.7]} 9... Nxf6
{[%clk 0:02:48.6]} 10. e3 {[%clk 0:02:54.9]} 10... b6 {[%clk 0:02:47.9]} 11. Bd3
{[%clk 0:02:55.1]} 11... Bb7 {[%clk 0:02:48.4]} 12. O-O {[%clk 0:02:53]} 12...
Re8 {[%clk 0:02:48.7]} 13. b4 {[%clk 0:02:51.1]} 13... Qe7 {[%clk 0:02:48.5]}
14. Nd2 {[%clk 0:02:48.8]} 14... e5 {[%clk 0:02:47.1]} 15. d5 {[%clk 0:02:47.8]}
15... a5 {[%clk 0:02:41.9]} 16. e4 {[%clk 0:02:45.5]} 16... Bc8 {[%clk
0:02:36.2]} 17. h3 {[%clk 0:02:44.1]} 17... Nh5 {[%clk 0:02:35.4]} 18. Rfe1
{[%clk 0:02:39.3]} 18... Nf4 {[%clk 0:02:34.1]} 19. Bf1 {[%clk 0:02:39.8]} 19...
f5 {[%clk 0:02:29.3]} 20. g3 {[%clk 0:02:35.8]} 20... Qg5 {[%clk 0:02:23.8]} 21.
Kh2 {[%clk 0:02:32.9]} 21... Ng6 {[%clk 0:02:21.4]} 22. h4 {[%clk 0:02:16.8]}
22... Qf6 {[%clk 0:02:11.1]} 23. exf5 {[%clk 0:02:10.9]} 23... Bxf5 {[%clk
0:02:10.6]} 24. Qe3 {[%clk 0:02:09.7]} 24... e4 {[%clk 0:02:07]} 25. Nb3 {[%clk
0:02:03.2]} 25... Ne5 {[%clk 0:02:05.8]} 26. Be2 {[%clk 0:01:58.2]} 26... Bg4
{[%clk 0:02:03.2]} 27. Nd4 {[%clk 0:01:52.5]} 27... Bxe2 {[%clk 0:02:02.5]} 28.
Qxe2 {[%clk 0:01:53.4]} 28... axb4 {[%clk 0:02:02.1]} 29. axb4 {[%clk 0:01:53]}
29... Rxa1 {[%clk 0:02:02.1]} 30. Rxa1 {[%clk 0:01:53.7]} 30... Nd3 {[%clk
0:02:02.6]} 31. Qe3 {[%clk 0:01:42.7]} 31... Nxf2 {[%clk 0:01:59.6]} 32. Kg2
{[%clk 0:01:43.2]} 32... Ng4 {[%clk 0:01:59.4]} 33. Qc3 {[%clk 0:01:41.4]} 33...
Qf2+ {[%clk 0:01:51.9]} 34. Kh3 {[%clk 0:01:41.1]} 34... h5 {[%clk 0:01:52.3]}
35. Rh1 {[%clk 0:01:41]} 35... Ne3 {[%clk 0:01:47.2]} 36. Rh2 {[%clk 0:01:39.6]}
36... Qf1+ {[%clk 0:01:46.8]} 0-1

[Event "*** Titled Tuesday Blitz"]
[Site "Chess.com"]
[Date "2020.12.01"]
[Round "6"]
[White "TimurGareyev"]
[Black "LiamVrolijk"]
[Result "1-0"]
[WhiteElo "2670"]
[BlackElo "2813"]
[TimeControl "180+1"]
[EndTime "11:02:04 PST"]
[Termination "TimurGareyev won by resignation"]

1. d4 {[%clk 0:03:00.9]} 1... Nf6 {[%clk 0:02:59.7]} 2. c4 {[%clk 0:03:01]} 2...
e6 {[%clk 0:03:00]} 3. Nc3 {[%clk 0:03:01.3]} 3... Bb4 {[%clk 0:03:00.2]} 4. e3
{[%clk 0:03:01.7]} 4... O-O {[%clk 0:02:59.3]} 5. Bd3 {[%clk 0:03:01.1]} 5... b6
{[%clk 0:02:58.3]} 6. Ne2 {[%clk 0:03:00.6]} 6... Bb7 {[%clk 0:02:57.9]} 7. O-O
{[%clk 0:02:59.1]} 7... d5 {[%clk 0:02:54.2]} 8. cxd5 {[%clk 0:02:55.8]} 8...
exd5 {[%clk 0:02:55.1]} 9. Bd2 {[%clk 0:02:54.9]} 9... a6 {[%clk 0:02:52.9]} 10.
f3 {[%clk 0:02:50.6]} 10... Re8 {[%clk 0:02:46.2]} 11. Kh1 {[%clk 0:02:42.5]}
11... Nbd7 {[%clk 0:02:35.6]} 12. Rc1 {[%clk 0:02:37.2]} 12... Bd6 {[%clk
0:02:31.8]} 13. Ng3 {[%clk 0:02:34.6]} 13... c5 {[%clk 0:02:24.8]} 14. Nf5
{[%clk 0:02:33.4]} 14... Bc7 {[%clk 0:02:25.1]} 15. Bb1 {[%clk 0:02:23.3]} 15...
g6 {[%clk 0:02:22.3]} 16. Nh6+ {[%clk 0:02:21.1]} 16... Kg7 {[%clk 0:02:22.3]}
17. e4 {[%clk 0:02:21.2]} 17... cxd4 {[%clk 0:02:19.9]} 18. Nxd5 {[%clk
0:02:10.3]} 18... Nxd5 {[%clk 0:02:05.7]} 19. exd5 {[%clk 0:02:11.2]} 19... Bxd5
{[%clk 0:01:55.9]} 20. Qa4 {[%clk 0:02:06.8]} 20... Be5 {[%clk 0:01:45.2]} 21.
Ng4 {[%clk 0:02:03.5]} 21... Nc5 {[%clk 0:01:44.4]} 22. Qd1 {[%clk 0:01:56]}
22... Bc7 {[%clk 0:01:41.5]} 23. Bh6+ {[%clk 0:01:55.1]} 23... Kg8 {[%clk
0:01:12.2]} 24. Qxd4 {[%clk 0:01:56]} 24... Ne6 {[%clk 0:01:09.2]} 25. Qxd5
{[%clk 0:01:55.3]} 1-0

[Event "*** Titled Tuesday Blitz"]
[Site "Chess.com"]
[Date "2020.12.01"]
[Round "6"]
[White "Blitzking642"]
[Black "Vojtap"]
[Result "0-1"]
[WhiteElo "2235"]
[BlackElo "2129"]
[TimeControl "180+1"]
[EndTime "11:02:17 PST"]
[Termination "Vojtap won by resignation"]

1. e4 {[%clk 0:03:00.9]} 1... c5 {[%clk 0:02:59.6]} 2. Nc3 {[%clk 0:03:00.1]}
2... Nc6 {[%clk 0:02:58.9]} 3. g3 {[%clk 0:03:00.5]} 3... g6 {[%clk 0:02:59.3]}
4. Bg2 {[%clk 0:03:00.6]} 4... Bg7 {[%clk 0:03:00]} 5. d3 {[%clk 0:03:01.1]}
5... d6 {[%clk 0:03:00.6]} 6. Be3 {[%clk 0:03:01.5]} 6... Rb8 {[%clk 0:02:59.5]}
7. Qd2 {[%clk 0:03:00.8]} 7... b5 {[%clk 0:03:00]} 8. Nge2 {[%clk 0:02:58.6]}
8... e6 {[%clk 0:03:00]} 9. O-O {[%clk 0:02:56.9]} 9... Nd4 {[%clk 0:02:53.5]}
10. Nc1 {[%clk 0:02:43.5]} 10... Ne7 {[%clk 0:02:45.5]} 11. Nd1 {[%clk
0:02:40.2]} 11... e5 {[%clk 0:02:32.8]} 12. c3 {[%clk 0:02:39.3]} 12... Ne6
{[%clk 0:02:32.9]} 13. Ne2 {[%clk 0:02:31]} 13... O-O {[%clk 0:02:30.4]} 14. Bh6
{[%clk 0:02:29.5]} 14... Bb7 {[%clk 0:02:21.9]} 15. Bxg7 {[%clk 0:02:28.9]}
15... Kxg7 {[%clk 0:02:22.6]} 16. Ne3 {[%clk 0:02:29.1]} 16... d5 {[%clk
0:02:21.5]} 17. exd5 {[%clk 0:02:26.5]} 17... Nxd5 {[%clk 0:02:22.4]} 18. Rad1
{[%clk 0:02:21.7]} 18... Qd6 {[%clk 0:02:07.9]} 19. d4 {[%clk 0:01:40]} 19...
Nxe3 {[%clk 0:01:31.6]} 20. fxe3 {[%clk 0:01:14.1]} 20... Bxg2 {[%clk
0:01:30.5]} 21. Kxg2 {[%clk 0:01:13.8]} 21... Qd5+ {[%clk 0:01:27.8]} 22. Kg1
{[%clk 0:01:13.9]} 22... Ng5 {[%clk 0:01:25.7]} 0-1

[Event "*** Titled Tuesday Blitz"]
[Site "Chess.com"]
[Date "2020.12.01"]
[Round "6"]
[White "ZenBull"]
[Black "Zorbos"]
[Result "1-0"]
[WhiteElo "2216"]
[BlackElo "2520"]
[TimeControl "180+1"]
[EndTime "11:02:39 PST"]
[Termination "ZenBull won by resignation"]

1. Nf3 {[%clk 0:03:00.9]} 1... c5 {[%clk 0:02:40.8]} 2. c4 {[%clk 0:03:00.9]}
2... Nc6 {[%clk 0:02:34.8]} 3. Nc3 {[%clk 0:02:59.3]} 3... g6 {[%clk 0:02:34.8]}
4. g3 {[%clk 0:02:57.8]} 4... Bg7 {[%clk 0:02:34.9]} 5. Bg2 {[%clk 0:02:58.2]}
5... e6 {[%clk 0:02:35.5]} 6. O-O {[%clk 0:02:57.5]} 6... Nge7 {[%clk 0:02:36]}
7. b3 {[%clk 0:02:53.3]} 7... d5 {[%clk 0:02:35.7]} 8. cxd5 {[%clk 0:02:53.1]}
8... exd5 {[%clk 0:02:36.1]} 9. Bb2 {[%clk 0:02:51.8]} 9... d4 {[%clk
0:02:36.6]} 10. Nb1 {[%clk 0:02:49.1]} 10... O-O {[%clk 0:02:35.2]} 11. e3
{[%clk 0:02:41.6]} 11... Bf5 {[%clk 0:02:26.3]} 12. exd4 {[%clk 0:02:39.1]}
12... cxd4 {[%clk 0:02:17.3]} 13. Na3 {[%clk 0:02:32.4]} 13... Bd3 {[%clk
0:02:13.1]} 14. Re1 {[%clk 0:02:31.7]} 14... Rc8 {[%clk 0:01:58.9]} 15. Nc4
{[%clk 0:02:25.8]} 15... Nb4 {[%clk 0:01:35.4]} 16. Ba3 {[%clk 0:02:17.7]} 16...
Ned5 {[%clk 0:01:29.9]} 17. Nfe5 {[%clk 0:02:06.4]} 17... Re8 {[%clk 0:00:52.3]}
18. Nxd3 {[%clk 0:02:03.3]} 18... Nxd3 {[%clk 0:00:47.4]} 19. Rxe8+ {[%clk
0:02:02.3]} 19... Qxe8 {[%clk 0:00:48.3]} 20. Bxd5 {[%clk 0:02:01.8]} 20... Qb5
{[%clk 0:00:44.2]} 21. Bg2 {[%clk 0:01:59]} 21... Rd8 {[%clk 0:00:40.3]} 22. Qf3
{[%clk 0:01:51]} 22... Ne5 {[%clk 0:00:32.3]} 23. Nxe5 {[%clk 0:01:49.4]} 23...
Bxe5 {[%clk 0:00:33.2]} 24. Qxb7 {[%clk 0:01:47.8]} 24... Qe2 {[%clk 0:00:33.5]}
25. Qe4 {[%clk 0:01:43.6]} 1-0